fUST/lending_fUST_20251206
["ID","MTS","AMOUNT","RATE_DAILY","PERIOD"]
[396482453,1764984646609,-637.7718737,0.00013943,2]
[396482454,1764984646621,-3500.13,0.00013943,2]
[396482455,1764984646633,-1464.41,0.00013943,2]
[396482456,1764984646644,-698.02,0.00013943,2]
[396482457,1764984646656,-500.0,0.00013943,2]
[396482458,1764984646666,-500.0,0.00013943,2]
[396482459,1764984646676,-500.0,0.00013943,2]
[396482460,1764984646687,-500.0,0.00013943,2]
[396482461,1764984646697,-500.0,0.00013943,2]
[396482462,1764984646708,-883.03,0.00013943,2]
[396482463,1764984646720,-500.0,0.00013943,2]
[396482464,1764984646732,-11115.79,0.00013943,2]
[396482465,1764984646742,-729.47,0.00013943,2]
[396482466,1764984646752,-500.0,0.00013943,2]
[396482467,1764984646762,-500.0,0.00013943,2]
[396482468,1764984646772,-502.24,0.00013943,2]
[396482469,1764984646782,-500.0,0.00013943,2]
[396482470,1764984646792,-500.0,0.00013943,2]
[396482471,1764984646802,-694.27,0.00013943,2]
[396482472,1764984646812,-2105.28,0.00013943,2]
[396482473,1764984646823,-500.0,0.00013943,2]
[396482474,1764984646834,-1762.9,0.00013943,2]
[396482475,1764984646845,-500.0,0.00013943,2]
[396482476,1764984646856,-937.65,0.00013943,2]
[396482477,1764984646866,-557.66,0.00013943,2]
[396482478,1764984646877,-1125.54,0.00013943,2]
[396482479,1764984646888,-500.0,0.00013943,2]
[396482480,1764984646898,-500.0,0.00013943,2]
[396482481,1764984646908,-500.0,0.00013943,2]
[396482482,1764984646919,-500.0,0.00013943,2]
[396482483,1764984646931,-500.0,0.00013943,2]
[396482484,1764984646942,-203.95411965,0.00013943,2]
[396482485,1764984646952,-1449.04,0.00013943,2]
[396482486,1764984646962,-500.0,0.00013943,2]
[396482487,1764984646972,-807.63,0.00013945,2]
[396482488,1764984646982,-632.35,0.00013945,2]
[396482489,1764984646992,-500.0,0.00013945,2]
[396482490,1764984647003,-503.96,0.00013945,2]
[396482491,1764984647013,-500.0,0.00013945,2]
[396482492,1764984647024,-500.0,0.00013945,2]
[396482493,1764984647035,-500.0,0.00013971,2]
[396482494,1764984647046,-527.77196445,0.00013971,2]
[396482495,1764984647058,-500.0,0.00013971,2]
[396482496,1764984647070,-500.0,0.00013971,2]
[396482497,1764984647081,-980.88,0.00013971,2]
[396482498,1764984647092,-500.0,0.00013971,2]
[396482499,1764984647104,-500.0,0.00013971,2]
[396482500,1764984647115,-500.0,0.00013971,2]
[396482501,1764984647126,-500.0,0.00013971,2]
[396482502,1764984647138,-500.0,0.00013971,2]
[396482503,1764984647148,-230.80467423,0.00013971,2]
[396482504,1764984647160,-500.0,0.00013971,2]
[396482505,1764984647171,-500.0,0.00013971,2]
[396482506,1764984647182,-458.81855031,0.00013971,2]
[396482507,1764984647193,-500.0,0.00013971,2]
[396482508,1764984647204,-500.0,0.00013971,2]
[396482509,1764984647215,-561.45,0.00013971,2]
[396482510,1764984647225,-500.0,0.00013971,2]
[396482511,1764984647236,-5373.57,0.00013971,2]
[396482512,1764984647246,-785.9,0.00013971,2]
[396482513,1764984647257,-856.82,0.00013971,2]
[396482514,1764984647267,-502.2,0.00013971,2]
[396482515,1764984647280,-500.0,0.00013971,2]
[396482516,1764984647290,-4577.73,0.00013971,2]
[396482517,1764984647301,-2814.42,0.00013971,2]
[396482518,1764984647311,-5044.77,0.00013971,2]
[396482519,1764984647322,-500.0,0.00013971,2]
[396482520,1764984647332,-520.69,0.00013971,2]
[396482521,1764984647343,-500.0,0.00013971,2]
[396482522,1764984647353,-1037.07,0.00013971,2]
[396482523,1764984647364,-500.0,0.00013972,2]
[396482524,1764984647374,-500.0,0.00013972,2]
[396482525,1764984647385,-500.0,0.00013972,2]
[396482526,1764984647395,-500.0,0.00013972,2]
[396482527,1764984647407,-500.0,0.00013972,2]
[396482528,1764984647417,-500.0,0.00013972,2]
[396482529,1764984647428,-500.0,0.00013972,2]
[396482530,1764984647438,-500.0,0.00013972,2]
[396482531,1764984647449,-500.0,0.00013972,2]
[396482532,1764984647460,-737.02,0.00013972,2]
[396482533,1764984647471,-2006.27,0.00013972,2]
[396482534,1764984647481,-1388.45,0.00013972,2]
[396482535,1764984647493,-500.0,0.00013972,2]
[396482536,1764984647504,-1160.36,0.00013972,2]
[396482537,1764984647515,-500.0,0.00013972,2]
[396482538,1764984647525,-500.0,0.00013972,2]
[396482539,1764984647536,-936.33,0.00013972,2]
[396482540,1764984647547,-500.0,0.00013972,2]
[396482541,1764984647557,-500.0,0.00013972,2]
[396482542,1764984647568,-500.0,0.00013972,2]
[396482543,1764984647578,-500.0,0.00013972,2]
[396482544,1764984647589,-500.0,0.00013972,2]
[396482545,1764984647599,-500.0,0.00013972,2]
[396482546,1764984647610,-500.0,0.00013972,2]
[396482547,1764984647621,-667.72,0.00013972,2]
[396482548,1764984647631,-663.74,0.00013972,2]
[396482549,1764984647641,-500.0,0.00013972,2]
[396482550,1764984647652,-500.0,0.00013972,2]
[396482551,1764984647663,-500.0,0.00013972,2]
[396482552,1764984647674,-521.52,0.00013972,2]
[396482553,1764984647685,-500.0,0.00013972,2]
[396482554,1764984647695,-500.0,0.00013972,2]
[396482555,1764984647707,-500.0,0.00013972,2]
[396482556,1764984647720,-497.1049135,0.00013972,2]
[396482557,1764984647731,-500.0,0.00013972,2]
[396482558,1764984647742,-2200.43,0.00013972,2]
[396482559,1764984647752,-500.0,0.00013972,2]
[396482560,1764984647763,-6276.9,0.00013972,2]
[396482561,1764984647775,-500.0,0.00013972,2]
[396482562,1764984647786,-500.0,0.00013972,2]
[396482563,1764984647798,-500.0,0.00013972,2]
[396482564,1764984647808,-500.0,0.00013972,2]
[396482565,1764984647819,-500.0,0.00013972,2]
[396482566,1764984647829,-635.64,0.00013972,2]
[396482567,1764984647840,-500.0,0.00013972,2]
[396482568,1764984647849,-500.0,0.00013972,2]
[396482569,1764984647860,-500.0,0.00013972,2]
[396482570,1764984647871,-500.0,0.00013972,2]
[396482571,1764984647881,-500.0,0.00013972,2]
[396482572,1764984647892,-503.91736869,0.00013972,2]
[396482573,1764984647904,-550.76,0.00013972,2]
[396482574,1764984647915,-500.0,0.00013972,2]
[396482575,1764984647925,-809.38,0.00013972,2]
[396482576,1764984647941,-946.82,0.00013972,2]
[396482577,1764984647953,-5079.42974295,0.00014015,2]
[396482578,1764984647964,-1658.87708526,0.00014062,2]
[396482579,1764984647975,-221.37763567,0.00014095,2]
[396482580,1764984647987,-720.0,0.00014107,2]
[396482581,1764984647999,-500.0,0.00014115,2]
[396482582,1764984648010,-278.29611606,0.00014115,2]
[396482583,1764984648021,-500.0,0.00014115,2]
[396482584,1764984648033,-500.0,0.00014115,2]
[396482585,1764984648044,-500.0,0.00014115,2]
[396482586,1764984648055,-620.0,0.00014115,2]
[396482587,1764984648068,-500.0,0.00014115,2]
[396482588,1764984648080,-898.04,0.00014115,2]
[396482589,1764984648091,-500.0,0.00014115,2]
[396482590,1764984648104,-500.0,0.00014115,2]
[396482591,1764984648120,-681.84,0.00014115,2]
[396482592,1764984648131,-500.0,0.00014115,2]
[396482593,1764984648144,-500.0,0.00014115,2]
[396482594,1764984648155,-500.0,0.00014115,2]
[396482595,1764984648166,-1516.05,0.00014115,2]
[396482596,1764984648178,-1404.0,0.00014115,2]
[396482597,1764984648191,-500.0,0.00014115,2]
[396482598,1764984648203,-500.0,0.00014115,2]
[396482599,1764984648215,-562.49,0.00014115,2]
[396482600,1764984648227,-1017.17,0.00014115,2]
[396482601,1764984648239,-920.33,0.00014115,2]
[396482602,1764984648250,-667.7,0.00014115,2]
[396482603,1764984648260,-500.0,0.00014115,2]
[396482604,1764984648271,-3402.67,0.00014115,2]
[396482605,1764984648281,-500.0,0.00014115,2]
[396482606,1764984648292,-1979.91,0.00014115,2]
[396482607,1764984648302,-500.0,0.00014115,2]
[396482608,1764984648313,-500.0,0.00014115,2]
[396482609,1764984648323,-500.0,0.00014115,2]
[396482610,1764984648333,-695.76,0.00014115,2]
[396482611,1764984648344,-500.0,0.00014115,2]
[396482612,1764984648355,-2098.47,0.00014115,2]
[396482613,1764984648364,-838.31,0.00014115,2]
[396482614,1764984648375,-500.0,0.00014115,2]
[396482615,1764984648385,-500.0,0.00014145,2]
[396482616,1764984648396,-500.0,0.00014163,2]
[396482617,1764984648407,-500.0,0.00014163,2]
[396482618,1764984648417,-1594.6,0.00014163,2]
[396482619,1764984648427,-500.0,0.00014163,2]
[396482620,1764984648437,-500.0,0.00014163,2]
[396482621,1764984648448,-500.0,0.00014163,2]
[396482622,1764984648458,-500.0,0.00014163,2]
[396482623,1764984648468,-500.0,0.00014163,2]
[396482624,1764984648479,-940.36,0.00014163,2]
[396482625,1764984648488,-688.03,0.00014163,2]
[396482626,1764984648499,-500.0,0.00014163,2]
[396482627,1764984648509,-500.0,0.00014163,2]
[396482628,1764984648520,-500.0,0.00014163,2]
[396482629,1764984648531,-500.0,0.00014163,2]
[396482630,1764984648541,-500.0,0.00014163,2]
[396482631,1764984648551,-500.0,0.00014163,2]
[396482632,1764984648561,-500.0,0.00014163,2]
[396482633,1764984648574,-584.38,0.00014163,2]
[396482634,1764984648584,-983.17,0.00014163,2]
[396482635,1764984648594,-500.0,0.00014163,2]
[396482636,1764984648604,-500.0,0.00014163,2]
[396482637,1764984648619,-500.0,0.00014163,2]
[396482638,1764984648629,-500.0,0.00014163,2]
[396482639,1764984648639,-2127.45,0.00014163,2]
[396482640,1764984648649,-500.0,0.00014163,2]
[396482641,1764984648660,-548.51,0.00014163,2]
[396482642,1764984648671,-757.75,0.00014163,2]
[396482643,1764984648680,-500.0,0.00014163,2]
[396482644,1764984648691,-1986.82,0.00014163,2]
[396482645,1764984648701,-500.0,0.00014163,2]
[396482646,1764984648711,-500.0,0.00014163,2]
[396482647,1764984648721,-500.0,0.00014163,2]
[396482648,1764984648732,-500.0,0.00014163,2]
[396482649,1764984648742,-500.0,0.00014163,2]
[396482650,1764984648754,-500.0,0.00014163,2]
[396482651,1764984648766,-500.0,0.00014163,2]
[396482652,1764984648780,-500.0,0.00014163,2]
[396482653,1764984648791,-520.6,0.00014163,2]
[396482654,1764984648801,-500.0,0.00014163,2]
[396482655,1764984648811,-500.0,0.00014163,2]
[396482656,1764984648824,-500.0,0.00014163,2]
[396482657,1764984648834,-598.55,0.00014163,2]
[396482658,1764984648845,-500.0,0.00014163,2]
[396482659,1764984649192,-940.7,0.00014163,2]
[396482660,1764984649209,-669.51,0.00014163,2]
[396482661,1764984649224,-597.0,0.00014163,2]
[396482662,1764984649238,-500.0,0.00014163,2]
[396482663,1764984649247,-500.0,0.00014163,2]
[396482664,1764984649256,-6381.07,0.00014163,2]
[396482665,1764984649265,-1812.13,0.00014163,2]
[396482666,1764984649274,-528.51,0.00014163,2]
[396482667,1764984649284,-625.47,0.00014163,2]
[396482668,1764984649293,-500.0,0.00014163,2]
[396482669,1764984649302,-500.0,0.00014164,2]
[396482670,1764984649311,-853.71,0.00014193,2]
[396482671,1764984649321,-801.55,0.00014193,2]
[396482672,1764984649330,-620.92,0.00014193,2]
[396482673,1764984649339,-500.0,0.00014193,2]
[396482674,1764984649349,-500.0,0.00014193,2]
[396482675,1764984649358,-500.0,0.00014193,2]
[396482676,1764984649368,-764.94,0.00014193,2]
[396482677,1764984649377,-500.0,0.00014193,2]
[396482678,1764984649386,-3498.92,0.00014193,2]
[396482679,1764984649395,-655.07,0.00014193,2]
[396482680,1764984649404,-588.87,0.00014193,2]
[396482681,1764984649413,-500.0,0.00014193,2]
[396482682,1764984649422,-681.95,0.00014193,2]
[396482683,1764984649431,-520.94,0.00014193,2]
[396482684,1764984649440,-2149.63,0.00014193,2]
[396482685,1764984649450,-1365.09,0.00014193,2]
[396482686,1764984649460,-500.0,0.00014193,2]
[396482687,1764984649470,-500.0,0.00014193,2]
[396482688,1764984649479,-1566.82,0.00014193,2]
[396482689,1764984649488,-500.0,0.00014193,2]
[396482690,1764984649506,-500.0,0.00014193,2]
[396482691,1764984649515,-892.27,0.00014193,2]
[396482692,1764984649526,-500.0,0.00014193,2]
[396482693,1764984649535,-667.29,0.00014193,2]
[396482694,1764984649544,-795.69,0.00014193,2]
[396482695,1764984649553,-1027.78,0.00014193,2]
[396482696,1764984649562,-824.92,0.00014193,2]
[396482697,1764984649571,-552.81,0.00014193,2]
[396482698,1764984649580,-500.0,0.00014193,2]
[396482699,1764984649589,-1145.85,0.00014193,2]
[396482700,1764984649598,-528.84,0.00014217,2]
[396482701,1764984649607,-500.0,0.00014217,2]
[396482702,1764984649615,-150.36083338,0.00014217,2]
[396482703,1764984649624,-500.0,0.00014217,2]
[396482704,1764984649633,-500.0,0.00014217,2]
[396482705,1764984649642,-609.29693135,0.00014217,2]
[396482706,1764984649651,-568.26104789,0.00014217,2]
[396482707,1764984649660,-500.0,0.00014217,2]
[396482708,1764984649670,-500.0,0.00014217,2]
[396482709,1764984649678,-500.0,0.00014217,2]
[396482710,1764984649687,-500.0,0.00014217,2]
[396482711,1764984649696,-500.0,0.00014217,2]
[396482712,1764984649705,-500.0,0.00014217,2]
[396482713,1764984649714,-500.0,0.00014217,2]
[396482714,1764984649723,-546.28,0.00014217,2]
[396482715,1764984649736,-500.0,0.00014217,2]
[396482716,1764984649751,-500.0,0.00014217,2]
[396482717,1764984649760,-500.0,0.00014217,2]
[396482718,1764984649768,-500.0,0.00014217,2]
[396482719,1764984649777,-500.0,0.00014217,2]
[396482720,1764984649786,-500.0,0.00014217,2]
[396482721,1764984649794,-500.0,0.00014217,2]
[396482722,1764984649805,-500.0,0.00014217,2]
[396482723,1764984649816,-255.47552014,0.00014217,2]
[396482724,1764984649825,-517.41,0.00014217,2]
[396482725,1764984649836,-598.96,0.00014217,2]
[396482726,1764984649847,-500.0,0.00014217,2]
[396482727,1764984649857,-500.0,0.00014217,2]
[396482728,1764984649867,-500.0,0.00014217,2]
[396482729,1764984649877,-500.0,0.00014217,2]
[396482730,1764984649887,-500.0,0.00014217,2]
[396482731,1764984649896,-370.05017832,0.00014217,2]
[396482732,1764984649905,-500.0,0.00014217,2]
[396482733,1764984649915,-500.0,0.00014217,2]
[396482734,1764984649923,-500.0,0.00014217,2]
[396482735,1764984649932,-500.0,0.00014217,2]
[396482736,1764984649941,-500.0,0.00014217,2]
[396482737,1764984649951,-500.0,0.00014217,2]
[396482738,1764984649959,-500.0,0.00014217,2]
[396482739,1764984649968,-500.0,0.00014217,2]
[396482740,1764984649977,-500.0,0.00014217,2]
[396482741,1764984649986,-500.0,0.00014217,2]
[396482742,1764984649994,-500.0,0.00014217,2]
[396482743,1764984650003,-413.79100109,0.00014217,2]
[396482744,1764984650012,-550.79,0.00014217,2]
[396482745,1764984650021,-213.52640895,0.00014217,2]
[396482746,1764984650031,-500.0,0.00014217,2]
[396482747,1764984650042,-645.23,0.00014217,2]
[396482748,1764984650051,-500.0,0.00014217,2]
[396482749,1764984650060,-500.0,0.00014217,2]
[396482750,1764984650069,-500.0,0.00014217,2]
[396482751,1764984650079,-2207.61,0.00014217,2]
[396482752,1764984650088,-500.0,0.00014217,2]
[396482753,1764984650097,-500.0,0.00014217,2]
[396482754,1764984650107,-2826.44,0.00014217,2]
[396482755,1764984650116,-500.0,0.00014217,2]
[396482756,1764984650125,-500.0,0.00014217,2]
[396482757,1764984650133,-500.0,0.00014217,2]
[396482758,1764984650142,-621.01,0.00014217,2]
[396482759,1764984650151,-500.0,0.00014217,2]
[396482760,1764984650161,-5177.47,0.00014217,2]
[396482761,1764984650170,-500.0,0.00014217,2]
[396482762,1764984650179,-500.0,0.00014217,2]
[396482763,1764984650188,-500.0,0.00014217,2]
[396482764,1764984650197,-500.0,0.00014217,2]
[396482765,1764984650206,-859.96,0.00014217,2]
[396482766,1764984650215,-500.0,0.00014217,2]
[396482767,1764984650224,-500.0,0.00014217,2]
[396482768,1764984650234,-500.0,0.00014217,2]
[396482769,1764984650244,-599.16,0.00014217,2]
[396482770,1764984650255,-545.84520325,0.00014217,2]
[396482771,1764984650265,-549.61,0.00014217,2]
[396482772,1764984650274,-1571.23,0.00014217,2]
[396482773,1764984650283,-3500.13,0.00014217,2]
[396482774,1764984650292,-1464.41,0.00014217,2]
[396482775,1764984650301,-698.02,0.00014217,2]
[396482776,1764984650311,-500.0,0.00014217,2]
[396482777,1764984650320,-500.0,0.00014217,2]
[396482778,1764984650330,-303.02534428,0.00014217,2]
[396482779,1764984650339,-500.0,0.00014217,2]
[396482780,1764984650348,-500.0,0.00014217,2]
[396482781,1764984650358,-883.03,0.00014217,2]
[396482782,1764984650368,-500.0,0.00014217,2]
[396482783,1764984650378,-11115.79,0.00014217,2]
[396482784,1764984650388,-729.47,0.00014217,2]
[396482785,1764984650399,-500.0,0.00014217,2]
[396482786,1764984650408,-492.79369744,0.00014217,2]
[396482787,1764984650418,-502.24,0.00014217,2]
[396482788,1764984650427,-500.0,0.00014217,2]
[396482789,1764984650437,-500.0,0.00014217,2]
[396482790,1764984650446,-694.27,0.00014217,2]
[396482791,1764984650458,-2105.28,0.00014217,2]
[396482792,1764984650468,-500.0,0.00014217,2]
[396482793,1764984650477,-1762.9,0.00014217,2]
[396482794,1764984650487,-500.0,0.00014217,2]
[396482795,1764984650497,-937.65,0.00014217,2]
[396482796,1764984650507,-557.66,0.00014217,2]
[396482797,1764984650517,-1125.54,0.00014217,2]
[396482798,1764984650527,-500.0,0.00014217,2]
[396482799,1764984650537,-500.0,0.00014217,2]
[396482800,1764984650546,-636.05000123,0.00014217,2]
[396482801,1764984650556,-157.32,0.00014217,2]
[396482802,1764984650566,-500.0,0.00014217,2]
[396482803,1764984650577,-1449.04,0.00014217,2]
[396482804,1764984650587,-500.0,0.00014217,2]
[396482805,1764984650596,-807.63,0.00014219,2]
[396482806,1764984650607,-632.35,0.00014219,2]
[396482807,1764984650616,-500.0,0.00014219,2]
[396482808,1764984650625,-503.96,0.00014219,2]
[396482809,1764984650635,-500.0,0.00014219,2]
[396482810,1764984650644,-388.91000001,0.00014219,2]
[396482811,1764984650653,-500.0,0.00014245,2]
[396482812,1764984650663,-500.0,0.00014245,2]
[396482813,1764984650672,-500.0,0.00014245,2]
[396482814,1764984650681,-980.88,0.00014245,2]
[396482815,1764984650692,-500.0,0.00014245,2]
[396482816,1764984650702,-500.0,0.00014245,2]
[396482817,1764984650711,-500.0,0.00014245,2]
[396482818,1764984650720,-500.0,0.00014245,2]
[396482819,1764984650729,-500.0,0.00014245,2]
[396482820,1764984650740,-500.0,0.00014245,2]
[396482821,1764984650750,-500.0,0.00014245,2]
[396482822,1764984650759,-500.0,0.00014245,2]
[396482823,1764984650768,-157.22388697,0.00014245,2]
[396482824,1764984650777,-561.45,0.00014245,2]
[396482825,1764984650787,-500.0,0.00014245,2]
[396482826,1764984650796,-5373.57,0.00014245,2]
[396482827,1764984650806,-785.9,0.00014245,2]
[396482828,1764984650815,-856.82,0.00014245,2]
[396482829,1764984650825,-502.2,0.00014245,2]
[396482830,1764984650834,-500.0,0.00014245,2]
[396482831,1764984650843,-4577.73,0.00014245,2]
[396482832,1764984650852,-2814.42,0.00014245,2]
[396482833,1764984650861,-5044.77,0.00014245,2]
[396482834,1764984650870,-500.0,0.00014245,2]
[396482835,1764984650880,-520.69,0.00014245,2]
[396482836,1764984650890,-500.0,0.00014245,2]
[396482837,1764984650899,-1037.07,0.00014245,2]
[396482838,1764984650908,-500.0,0.00014246,2]
[396482839,1764984650917,-244.06806105,0.00014246,2]
[396482840,1764984650927,-500.0,0.00014246,2]
[396482841,1764984650936,-500.0,0.00014246,2]
[396482842,1764984650946,-500.0,0.00014246,2]
[396482843,1764984650955,-500.0,0.00014246,2]
[396482844,1764984650963,-500.0,0.00014246,2]
[396482845,1764984650973,-500.0,0.00014246,2]
[396482846,1764984650982,-500.0,0.00014246,2]
[396482847,1764984650991,-737.02,0.00014246,2]
[396482848,1764984651000,-2006.27,0.00014246,2]
[396482849,1764984651009,-1388.45,0.00014246,2]
[396482850,1764984651018,-500.0,0.00014246,2]
[396482851,1764984651027,-1160.36,0.00014246,2]
[396482852,1764984651037,-500.0,0.00014246,2]
[396482853,1764984651046,-500.0,0.00014246,2]
[396482854,1764984651055,-936.33,0.00014246,2]
[396482855,1764984651064,-500.0,0.00014246,2]
[396482856,1764984651074,-500.0,0.00014246,2]
[396482857,1764984651084,-500.0,0.00014246,2]
[396482858,1764984651094,-500.0,0.00014246,2]
[396482859,1764984651103,-500.0,0.00014246,2]
[396482860,1764984651114,-500.0,0.00014246,2]
[396482861,1764984651125,-500.0,0.00014246,2]
[396482862,1764984651134,-667.72,0.00014246,2]
[396482863,1764984651144,-663.74,0.00014246,2]
[396482864,1764984651156,-500.0,0.00014246,2]
[396482865,1764984651166,-487.128426,0.00014246,2]
[396482866,1764984651178,-373.58795717,0.00014246,2]
[396482867,1764984651188,-521.52,0.00014246,2]
[396482868,1764984651199,-500.0,0.00014246,2]
[396482869,1764984651210,-500.0,0.00014246,2]
[396482870,1764984651222,-500.0,0.00014246,2]
[396482871,1764984651233,-500.0,0.00014246,2]
[396482872,1764984651243,-2200.43,0.00014246,2]
[396482873,1764984651253,-500.0,0.00014246,2]
[396482874,1764984651264,-6276.9,0.00014246,2]
[396482875,1764984651273,-500.0,0.00014246,2]
[396482876,1764984651283,-500.0,0.00014246,2]
[396482877,1764984651292,-610.13524575,0.00014246,2]
[396482878,1764984651302,-500.0,0.00014246,2]
[396482879,1764984651312,-500.0,0.00014246,2]
[396482880,1764984651323,-635.64,0.00014246,2]
[396482881,1764984651332,-500.0,0.00014246,2]
[396482882,1764984651342,-500.0,0.00014246,2]
[396482883,1764984651351,-500.0,0.00014246,2]
[396482884,1764984651361,-500.0,0.00014246,2]
[396482885,1764984651371,-500.0,0.00014246,2]
[396482886,1764984651380,-550.76,0.00014246,2]
[396482887,1764984651391,-500.0,0.00014246,2]
[396482888,1764984651401,-809.38,0.00014246,2]
[396482889,1764984651410,-946.82,0.00014246,2]
[396482890,1764984651420,-276.08809773,0.00014247,2]
[396482891,1764984651429,-1000.0,0.00014247,2]
[396482892,1764984651439,-1000.0,0.00014247,2]
[396482893,1764984651448,-500.0,0.00014303,2]
[396482894,1764984651458,-508.18288471,0.00014308,2]
[396482895,1764984651468,-543.00444416,0.00014389,2]
[396482896,1764984651478,-500.0,0.00014389,2]
[396482897,1764984651488,-500.0,0.00014389,2]
[396482898,1764984651499,-500.0,0.00014389,2]
[396482899,1764984651508,-620.0,0.00014389,2]
[396482900,1764984651519,-623.85105474,0.00014389,2]
[396482901,1764984651529,-898.04,0.00014389,2]
[396482902,1764984651539,-500.0,0.00014389,2]
[396482903,1764984651549,-512.87367079,0.00014389,2]
[396482904,1764984651559,-681.84,0.00014389,2]
[396482905,1764984651568,-500.0,0.00014389,2]
[396482906,1764984651578,-500.0,0.00014389,2]
[396482907,1764984651587,-500.0,0.00014389,2]
[396482908,1764984651597,-1516.05,0.00014389,2]
[396482909,1764984651607,-1404.0,0.00014389,2]
[396482910,1764984651618,-500.0,0.00014389,2]
[396482911,1764984651628,-500.0,0.00014389,2]
[396482912,1764984651639,-562.49,0.00014389,2]
[396482913,1764984651649,-1017.17,0.00014389,2]
[396482914,1764984651659,-920.33,0.00014389,2]
[396482915,1764984651669,-667.7,0.00014389,2]
[396482916,1764984651678,-500.0,0.00014389,2]
[396482917,1764984651689,-3402.67,0.00014389,2]
[396482918,1764984651699,-500.0,0.00014389,2]
[396482919,1764984651710,-1979.91,0.00014389,2]
[396482920,1764984651719,-500.0,0.00014389,2]
[396482921,1764984651729,-500.0,0.00014389,2]
[396482922,1764984651741,-500.0,0.00014389,2]
[396482923,1764984651751,-695.76,0.00014389,2]
[396482924,1764984651760,-500.0,0.00014389,2]
[396482925,1764984651769,-2098.47,0.00014389,2]
[396482926,1764984651778,-838.31,0.00014389,2]
[396482927,1764984651787,-500.0,0.00014389,2]
[396482928,1764984651796,-607.4047411,0.00014419,2]
[396482929,1764984651806,-500.0,0.00014437,2]
[396482930,1764984651815,-500.0,0.00014437,2]
[396482931,1764984651826,-1594.6,0.00014437,2]
[396482932,1764984651836,-500.0,0.00014437,2]
[396482933,1764984651847,-500.0,0.00014437,2]
[396482934,1764984651857,-500.0,0.00014437,2]
[396482935,1764984651867,-500.0,0.00014437,2]
[396482936,1764984651878,-500.0,0.00014437,2]
[396482937,1764984651888,-940.36,0.00014437,2]
[396482938,1764984651900,-688.03,0.00014437,2]
[396482939,1764984651912,-500.0,0.00014437,2]
[396482940,1764984651923,-500.0,0.00014437,2]
[396482941,1764984651934,-508.86931103,0.00014437,2]
[396482942,1764984651943,-500.0,0.00014437,2]
[396482943,1764984651952,-500.0,0.00014437,2]
[396482944,1764984651961,-500.0,0.00014437,2]
[396482945,1764984651970,-500.0,0.00014437,2]
[396482946,1764984651979,-584.38,0.00014437,2]
[396482947,1764984651988,-983.17,0.00014437,2]
[396482948,1764984651997,-500.0,0.00014437,2]
[396482949,1764984652159,-500.0,0.00014437,2]
[396482950,1764984652169,-500.0,0.00014437,2]
[396482951,1764984652179,-500.0,0.00014437,2]
[396482952,1764984652188,-2127.45,0.00014437,2]